Workbook

Sheet Lista de Tabelas

Sheet 1. Histórico de Produção
B2: 1. HISTÓRICO DA PRODUÇÃO NACIONAL
B6: Tabela 1. Histórico de produção de petróleo – óleo e condensado (Mbbl/d)
C8: 06/2019 | D8: 07/2019 | E8: 08/2019 | F8: 09/2019 | G8: 10/2019 | H8: 11/2019 | I8: 12/2019 | J8: 01/2020 | K8: 02/2020 | L8: 03/2020 | M8: 04/2020 | N8: 05/2020 | O8: 06/2020
B9: Óleo | C9: 2545.485925 | D9: 2762.367857 | E9: 2977.237242 | F9: 2915.391304 | G9: 2952.199751 | H9: 3078.75286 | I9: 3095.060274 | J9: 3156.255318 | K9: 2959.92026 | L9: 2962.960439 | M9: 2948.310339 | N9: 2755.498253 | O9: 3003.263319
B10: Condensado | C10: 11.94619789 | D10: 12.33422827 | E10: 12.19297114 | F10: 11.88336095 | G10: 11.69528613 | H10: 11.71502275 | I10: 11.53830291 | J10: 12.15219753 | K10: 11.75694602 | L10: 10.42510952 | M10: 10.053946 | N10: 9.936671063 | O10: 9.882566654
B11: Petróleo | C11: 2557.432123 | D11: 2774.702085 | E11: 2989.430213 | F11: 2927.274665 | G11: 2963.895037 | H11: 3090.467882 | I11: 3106.598577 | J11: 3168.407516 | K11: 2971.677206 | L11: 2973.385549 | M11: 2958.364285 | N11: 2765.434924 | O11: 3013.145886
B14: Tabela 2. Histórico de produção de gás natural – GASA e GASN (MMm³/d)
C16: 06/2019 | D16: 07/2019 | E16: 08/2019 | F16: 09/2019 | G16: 10/2019 | H16: 11/2019 | I16: 12/2019 | J16: 01/2020 | K16: 02/2020 | L16: 03/2020 | M16: 04/2020 | N16: 05/2020 | O16: 06/2020
B17: GASA | C17: 92.04030593 | D17: 100.704296 | E17: 107.5996642 | F17: 102.903797 | G17: 106.1164008 | H17: 110.587249 | I17: 111.9275296 | J17: 111.606383 | K17: 105.8729777 | L17: 106.9799671 | M17: 110.5608685 | N17: 100.0425543 | O17: 110.2861788
B18: GASN | C18: 19.11185767 | D18: 23.45239083 | E18: 25.72313926 | F18: 25.95255192 | G18: 25.47825991 | H18: 26.00960533 | I18: 25.85148261 | J18: 27.14649007 | K18: 23.06225719 | L18: 14.76937205 | M18: 13.44493475 | N18: 14.32457794 | O18: 18.18637217
B19: Gás Total | C19: 111.1521636 | D19: 124.1566868 | E19: 133.3228034 | F19: 128.8563489 | G19: 131.5946607 | H19: 136.5968543 | I19: 137.7790122 | J19: 138.7528731 | K19: 128.9352349 | L19: 121.7493391 | M19: 124.0058032 | N19: 114.3671322 | O19: 128.472551
B22: Tabela 3. Histórico da movimentação da gás natural (Mm³/d)
B24: Período | C24: Consumo Interno | D24: Queima | E24: Disponível | F24: Injeção | G24: Produção
B25: 06/19 | C25: 13104.23827 | D25: 4051.002894 | E25: 54753.02592 | F25: 39243.89652 | G25: 111152.1636
B26: 07/19 | C26: 13767.60483 | D26: 3469.938102 | E26: 61728.87186 | F26: 45190.27204 | G26: 124156.6868
B27: 08/19 | C27: 14393.58777 | D27: 3323.255819 | E27: 65534.58123 | F27: 50071.37861 | G27: 133322.8034
B28: 09/19 | C28: 14287.9335 | D28: 3275.474287 | E28: 67163.30214 | F28: 44129.63901 | G28: 128856.3489
B29: 10/19 | C29: 14284.62331 | D29: 3507.725614 | E29: 66688.77519 | F29: 47113.53657 | G29: 131594.6607
B30: 11/19 | C30: 14345.48834 | D30: 3432.365148 | E30: 66420.3494 | F30: 52398.65144 | G30: 136596.8543
B31: 12/19 | C31: 14347.48369 | D31: 3679.253162 | E31: 65605.8955 | F31: 54146.41294 | G31: 137779.0453
B32: 01/20 | C32: 14640.66376 | D32: 4033.686445 | E32: 67943.57416 | F32: 52082.82284 | G32: 138700.7472
B33: 02/20 | C33: 14164.81858 | D33: 3643.989272 | E33: 61364.60234 | F33: 49761.82471 | G33: 128935.2349
B34: 03/20 | C34: 14380.26079 | D34: 3398.065698 | E34: 47931.51383 | F34: 56039.49878 | G34: 121749.3391
B35: 04/20 | C35: 14339.35948 | D35: 2723.613006 | E35: 50600.74539 | F35: 56342.53753 | G35: 124006.2554
B36: 05/20 | C36: 13732.79069 | D36: 2781.886388 | E36: 48677.43975 | F36: 49175.01542 | G36: 114367.1322
B37: 06/20 | C37: 14313.70533 | D37: 3132.278069 | E37: 56333.57729 | F37: 54692.99032 | G37: 128472.551
B39: Tabela 4. Histórico de produção de petróleo e gás natural (Mboe/d)
C42: 06/2019 | D42: 07/2019 | E42: 08/2019 | F42: 09/2019 | G42: 10/2019 | H42: 11/2019 | I42: 12/2019 | J42: 01/2020 | K42: 02/2020 | L42: 03/2020 | M42: 04/2020 | N42: 05/2020 | O42: 06/2020
B43: Petróleo | C43: 2557.432123 | D43: 2774.702085 | E43: 2989.430213 | F43: 2927.274665 | G43: 2963.895037 | H43: 3090.467882 | I43: 3106.598577 | J43: 3168.407516 | K43: 2971.677206 | L43: 2973.385549 | M43: 2958.364285 | N43: 2765.434924 | O43: 3013.145886
B44: Gás Natural | C44: 699.1259901 | D44: 780.9219704 | E44: 838.5751022 | F44: 810.481952 | G44: 827.7054126 | H44: 859.1682604 | I44: 866.6038088 | J44: 872.7292085 | K44: 810.9781298 | L44: 765.7802106 | M44: 779.9729413 | N44: 719.3475318 | O44: 808.067936
B45: Produção Total | C45: 3256.558113 | D45: 3555.624056 | E45: 3828.005315 | F45: 3737.756617 | G45: 3791.600449 | H45: 3949.636143 | I45: 3973.202386 | J45: 4041.136724 | K45: 3782.655336 | L45: 3739.165759 | M45: 3738.337227 | N45: 3484.782456 | O45: 3821.213822

Sheet 2. Dados de Produção
B2: 2. DADOS DE PRODUÇÃO - DISTRIBUIÇÃO
B6: Tabela 5. Distribuição da produção de petróleo e gás natural por estado
B8: Estado | C8: Petróleo (bbl/d) | D8: Gás Natural (Mm³/d) | E8: Produção Total (boe/d) | F8: Nº Campos produtores
B9: Rio De Janeiro | C9: 2401674.612 | D9: 83480.23951 | E9: 2926749.458 | F9: 40
B10: São Paulo | C10: 282075.2819 | D10: 17260.63284 | E10: 390641.383 | F10: 8
B11: Espírito Santo | C11: 239840.0374 | D11: 6355.011784 | E11: 279811.8541 | F11: 35
B12: Amazonas | C12: 15323.7446 | D12: 13062.76587 | E12: 97486.06 | F12: 7
B13: Bahia | C13: 25143.0951 | D13: 4423.540941 | E13: 52966.32715 | F13: 77
B14: Rio Grande Do Norte | C14: 34404.87031 | D14: 624.1313543 | E14: 38330.53795 | F14: 74
B15: Maranhão | C15: 12.94364485 | D15: 2234.575123 | E15: 14067.9966 | F15: 6
B16: Sergipe | C16: 11255.85609 | D16: 71.071205 | E16: 11702.88046 | F16: 13
B17: Alagoas | C17: 2648.196859 | D17: 959.6060217 | E17: 8683.93641 | F17: 11
B18: Ceará | C18: 767.2477966 | D18: 0.9763476667 | E18: 773.3888379 | F18: 2
B19: Total Geral | C19: 3013145.886 | D19: 128472.551 | E19: 3821213.822 | F19: 273
B20: Tabela 6. Distribuição da produção de petróleo e gás natural por bacia
B22: Bacia | C22: Petróleo (bbl/d) | D22: Gás Natural (Mm³/d) | E22: Produção Total (boe/d) | F22: Nº Campos produtores
B23: Santos | C23: 2018900.486 | D23: 88904.40585 | E23: 2578092.307 | F23: 22
B24: Campos | C24: 883815.2408 | D24: 17250.4006 | E24: 992316.983 | F24: 29
B25: Solimões | C25: 15323.7446 | D25: 13062.76587 | E25: 97486.06 | F25: 7
B26: Potiguar | C26: 35172.11811 | D26: 625.107702 | E26: 39103.92678 | F26: 76
B27: Recôncavo | C27: 24896.9308 | D27: 1647.702431 | E27: 35260.66603 | F27: 71
B28: Espírito Santo | C28: 20874.20465 | D28: 941.077688 | E28: 26793.4045 | F28: 32
B29: Camamu | C29: 242.2163899 | D29: 2711.370015 | E29: 17296.21862 | F29: 1
B30: Parnaíba | C30: 12.94364485 | D30: 2234.575123 | E30: 14067.9966 | F30: 6
B31: Sergipe | C31: 11255.85609 | D31: 71.071205 | E31: 11702.88046 | F31: 13
B32: Alagoas | C32: 2648.196859 | D32: 959.6060217 | E32: 8683.93641 | F32: 11
B33: Tucano Sul | C33: 3.947904077 | D33: 64.468495 | E33: 409.4424886 | F33: 5
B34: Total Geral | C34: 3013145.886 | D34: 128472.551 | E34: 3821213.822 | F34: 273
B36: Tabela 7. Distribuição da produção de petróleo e gás natural por operador
B38: Nº | C38: Operador | D38: Petróleo (bbl/d) | E38: Gás Natural (Mm³/d) | F38: Produção Total (boe/d)
B39: 1 | C39: Petrobras | D39: 2868419.997 | E39: 123914.0456 | F39: 3647815.801
B40: 2 | C40: Shell Brasil | D40: 47279.25552 | E40: 512.7646413 | F40: 50504.44769
B41: 3 | C41: Total E&P do Brasil | D41: 29129.46242 | E41: 931.045248 | F41: 34985.56013
B42: 4 | C42: Petro Rio Jaguar | D42: 18311.50708 | E42: 229.623 | F42: 19755.79212
B43: 5 | C43: Enauta Energia S.A. | D43: 17583.67123 | E43: 129.0652333 | F43: 18395.46703
B44: 6 | C44: Eneva | D44: 12.94364485 | E44: 2234.575123 | F44: 14067.9966
B45: 7 | C45: Petro Rio O&G | D45: 7759.367377 | E45: 25.29542033 | F45: 7918.470764
B46: 8 | C46: Dommo Energia | D46: 5853.982769 | E46: 15.03077267 | F46: 5948.523473
B47: 9 | C47: Potiguar E&P S.A. | D47: 4516.449131 | E47: 130.7257507 | F47: 5338.689265
B48: 10 | C48: 3R PETROLEUM | D48: 3598.187039 | E48: 174.801623 | F48: 4697.656035
B49: 11 | C49: Perenco Brasil | D49: 4196.673897 | E49: 21.63748567 | F49: 4332.769571
B50: 12 | C50: Maha Energy | D50: 3579.696681 | E50: 69.06877667 | F50: 4014.126163
B51: 13 | C51: SHB | D51: 1453.314412 | E51: 16.395808 | F51: 1556.440929
B52: 14 | C52: Petrosynergy | D52: 342.6978301 | E52: 11.908475 | F52: 417.5998753
B53: 15 | C53: Nova Petróleo | D53: 208.2347039 | E53: 1.923404 | F53: 220.3325496
B54: 16 | C54: Petroborn | D54: 0 | E54: 34.93399667 | F54: 219.7282016
B55: 17 | C55: Imetame | D55: 157.3549946 | E55: 9.534294333 | F55: 217.3238944
B56: 18 | C56: Partex Brasil | D56: 206.0499824 | E56: 0.294834 | F56: 207.9044322
B57: 19 | C57: Petrogal Brasil | D57: 163.1206244 | E57: 2.504766333 | F57: 178.8751288
B58: 20 | C58: BGM | D58: 95.57156635 | E58: 0.07597666667 | F58: 96.04944514
B59: 21 | C59: Recôncavo E&P | D59: 81.20668861 | E59: 0.7833503333 | F59: 86.13381337
B60: 22 | C60: Phoenix Óleo & Gás | D60: 45.31808105 | E60: 4.175144 | F60: 71.57894353
B61: 23 | C61: Santana | D61: 38.81947032 | E61: 1.04849 | F61: 45.41427321
B62: 24 | C62: Vipetro | D62: 26.93802133 | E62: 0.064242 | F62: 27.3420913
B63: 25 | C63: Newo | D63: 20.9548794 | E63: 0.0213 | F63: 21.08885236
B64: 26 | C64: Alvopetro | D64: 12.54817095 | E64: 0.7760316667 | F64: 17.42926269
B65: 27 | C65: EPG Brasil | D65: 14.61688946 | E65: 0.3267466667 | F65: 16.67206391
B66: 28 | C66: Perícia | D66: 14.9697478 | E66: 0.0476 | F66: 15.26914276
B67: 29 | C67: Guto & Cacal | D67: 14.00635857 | E67: 0.0466 | F67: 14.29946371
B68: 30 | C68: Nord | D68: 3.983546333 | E68: 0.004906 | F68: 4.014404141
B69: 31 | C69: Ubuntu Engenharia | D69: 2.892683619 | E69: 0.004599 | F69: 2.921610455
B70: 32 | C70: Leros | D70: 1.077654113 | E70: 0.001713333333 | F70: 1.088430654
B71: 33 | C71: Petroil | D71: 1.015651263 | E71: 0 | F71: 1.015651263
B72: 34 | C72: Central Resources | D72: 2.096603333e-06 | E72: 3.333333333e-07 | F72: 4.193206667e-06
C73: Total Geral | D73: 3013145.886 | E73: 128472.551 | F73: 3821213.822
B75: Tabela 8. Distribuição da produção de petróleo e gás natural por concessionário
B77: Nº | C77: Concessionário | D77: Petróleo (bbl/d) | E77: Gás Natural (Mm³/d) | F77: Produção Total (boe/d)
B78: 1 | C78: Petrobras | D78: 2234504.125 | E78: 97177.52362 | F78: 2845732.285
B79: 2 | C79: Shell Brasil | D79: 386152.6027 | E79: 15645.52223 | F79: 484559.9649
B80: 3 | C80: Petrogal Brasil | D80: 110765.608 | E80: 4702.932552 | F80: 140346.1602
B81: 4 | C81: Repsol Sinopec | D81: 68887.46413 | E81: 2899.16211 | F81: 87122.64296
B82: 5 | C82: Petronas | D82: 45413.27787 | E82: 528.4193257 | F82: 48736.93503
B83: 6 | C83: Equinor Energy | D83: 35365.12764 | E83: 1038.027248 | F83: 41894.1218
B84: 7 | C84: Total E&P do Brasil | D84: 34566.91819 | E84: 1062.352189 | F84: 41248.91161
B85: 8 | C85: Enauta Energia S.A. | D85: 8900.832992 | E85: 1284.649123 | F85: 16981.03189
B86: 9 | C86: Eneva | D86: 12.94364485 | E86: 2234.575123 | F86: 14067.9966
B87: 10 | C87: ONGC Campos | D87: 10925.47361 | E87: 101.779397 | F87: 11565.64668
B88: 11 | C88: Petro Rio Jaguar | D88: 9474.20896 | E88: 118.8048737 | F88: 10221.46904
B89: 12 | C89: QPI Brasil | D89: 9306.884929 | E89: 86.70096767 | F89: 9852.217543
B90: 13 | C90: Chevron Brasil | D90: 9342.25945 | E90: 61.64744 | F90: 9730.010134
B91: 14 | C91: Barra Energia | D91: 8791.835617 | E91: 64.53261667 | F91: 9197.733514
B92: 15 | C92: Petro Rio O&G | D92: 7759.367377 | E92: 25.29542033 | F92: 7918.470764
B93: 16 | C93: Potiguar E&P S.A. | D93: 5636.79421 | E93: 142.3502333 | F93: 6532.150131
B94: 17 | C94: Dommo Energia | D94: 5853.982769 | E94: 15.03077267 | F94: 5948.523473
B95: 18 | C95: Perenco Brasil | D95: 4196.673897 | E95: 21.63748567 | F95: 4332.769571
B96: 19 | C96: 3R PETROLEUM | D96: 3520.43159 | E96: 104.348721 | F96: 4176.765219
B97: 20 | C97: Maha Energy | D97: 3385.193148 | E97: 66.87808767 | F97: 3805.843613
B98: 21 | C98: CNODC Brasil | D98: 2638.085302 | E98: 178.5194403 | F98: 3760.938663
B99: 22 | C99: CNOOC Petroleum | D99: 2638.085302 | E99: 178.5194403 | F99: 3760.938663
B100: 23 | C100: Frade | D100: 3343.845996 | E100: 41.93122633 | F100: 3607.585443
B101: 24 | C101: Brasoil Manati | D101: 24.22163899 | E101: 271.1370017 | F101: 1729.621863
B102: 25 | C102: Geopark Brasil | D102: 24.22163899 | E102: 271.1370017 | F102: 1729.621863
B103: 26 | C103: OP Pescada | D103: 82.11860623 | E103: 76.84078533 | F103: 565.4325462
B104: 27 | C104: SHB | D104: 439.6908453 | E104: 6.360378333 | F104: 479.6964166
B105: 28 | C105: Petrosynergy | D105: 342.6978301 | E105: 11.908475 | F105: 417.5998753
B106: 29 | C106: Nova Petróleo | D106: 208.2347039 | E106: 1.923404 | F106: 220.3325496
B107: 30 | C107: Petroborn | D107: 0 | E107: 34.93399667 | F107: 219.7282016
B108: 31 | C108: Imetame | D108: 157.3549946 | E108: 9.534294333 | F108: 217.3238944
B109: 32 | C109: Partex Brasil | D109: 103.0249912 | E109: 0.147417 | F109: 103.9522161
B110: 33 | C110: BGM | D110: 95.57156635 | E110: 0.07597666667 | F110: 96.04944514
B111: 34 | C111: Recôncavo E&P | D111: 81.20668861 | E111: 0.7833503333 | F111: 86.13381337
B112: 35 | C112: Phoenix Óleo & Gás | D112: 45.31808105 | E112: 4.175144 | F112: 71.57894353
B113: 36 | C113: Santana | D113: 38.81947032 | E113: 1.04849 | F113: 45.41427321
B114: 37 | C114: Vipetro | D114: 26.93802133 | E114: 0.064242 | F114: 27.3420913
B115: 38 | C115: Alvopetro | D115: 12.54817095 | E115: 0.7760316667 | F115: 17.42926269
B116: 39 | C116: Petro-Victory | D116: 14.89290729 | E116: 0.1736766667 | F116: 15.98530052
B117: 40 | C117: Guto & Cacal | D117: 14.00635857 | E117: 0.0466 | F117: 14.29946371
B118: 41 | C118: EPG Brasil | D118: 10.20280563 | E118: 0.18639 | F118: 11.37516332
B119: 42 | C119: NTF | D119: 10.4774397 | E119: 0.01065 | F119: 10.54442618
B120: 43 | C120: Newo | D120: 10.4774397 | E120: 0.01065 | F120: 10.54442618
B121: 44 | C121: Sonangol Guanambi | D121: 8.378739765 | E121: 0.1118953333 | F121: 9.082540152
B122: 45 | C122: Perícia | D122: 4.49092434 | E122: 0.01428 | F122: 4.580742827
B123: 46 | C123: Nord | D123: 3.983546333 | E123: 0.004906 | F123: 4.014404141
B124: 47 | C124: Ubuntu Engenharia | D124: 2.892683619 | E124: 0.004599 | F124: 2.921610455
B125: 48 | C125: Leros | D125: 1.077654113 | E125: 0.001713333333 | F125: 1.088430654
B126: 49 | C126: Oil Group | D126: 0.5078266798 | E126: 0 | F126: 0.5078266798
B127: 50 | C127: Petroil | D127: 0.5078266798 | E127: 0 | F127: 0.5078266798
B128: 51 | C128: Central Resources | D128: 2.096603333e-06 | E128: 3.333333333e-07 | F128: 4.193206667e-06
C129: Total Geral | D129: 3013145.886 | E129: 128472.551 | F129: 3821213.822
B130: Tabela 9. Movimentação de gás natural por destinação (Mm³/d)
B132: Bacia | C132: Consumo Interno | D132: Queima | E132: Disponível | F132: Injeção | G132: Produção
B133: Santos | C133: 6948.273244 | D133: 1827.079337 | E133: 31246.94623 | F133: 48882.10704 | G133: 88904.40585
B134: Campos | C134: 6380.955805 | D134: 939.9470947 | E134: 9807.145738 | F134: 122.3519623 | G134: 17250.4006
B135: Solimões | C135: 432.7240993 | D135: 159.2476993 | E135: 7218.90404 | F135: 5251.890033 | G135: 13062.76587
B136: Camamu | C136: 67.88593333 | D136: 3.400066667 | E136: 2640.084015 | F136: 0 | G136: 2711.370015
B137: Parnaíba | C137: 4.387862 | D137: 22.129979 | E137: 2208.057282 | F137: 0 | G137: 2234.575123
B138: Recôncavo | C138: 96.839674 | D138: 62.342708 | E138: 1051.891432 | F138: 436.628617 | G138: 1647.702431
B139: Alagoas | C139: 3.310099667 | D139: 14.54870667 | E139: 941.7345487 | F139: 0.01266666667 | G139: 959.6060217
B140: Espírito Santo | C140: 265.7040303 | D140: 26.25966433 | E140: 649.1139933 | F140: 0 | G140: 941.077688
B141: Potiguar | C141: 72.10521367 | D141: 47.06163067 | E141: 505.9408577 | F141: 0 | G141: 625.107702
B142: Sergipe | C142: 41.519366 | D142: 29.55610133 | E142: -0.004262333333 | F142: 0 | G142: 71.071205
B143: Tucano Sul | C143: -1e-38 | D143: 0.7050806667 | E143: 63.76341433 | F143: 0 | G143: 64.468495
B144: Total Geral | C144: 14313.70533 | D144: 3132.278069 | E144: 56333.57729 | F144: 54692.99032 | G144: 128472.551
B146: Tabela 10. Distribuição da produção dos campos do Pré-sal¹
B148: Campo | C148: Petróleo (bbl/d) | E148: Gás natural (Mm³/d) | G148: Produção (boe/d)
C149: Pré-sal | D149: Pós-sal | E149: Pré-sal | F149: Pós-sal | G149: Pré-sal | H149: Pós-sal
B150: Lula | C150: 1016720.554 | D150: 0 | E150: 44449.60649 | F150: 0 | G150: 1296300.133 | H150: 0
B151: Búzios | C151: 513207.2304 | D151: 0 | E151: 19485.40177 | F151: 0 | G151: 635766.7053 | H151: 0
B152: Sapinhoá | C152: 224500.5774 | D152: 0 | E152: 10060.07037 | F152: 0 | G152: 287776.5087 | H152: 0
B153: Jubarte | C153: 126128.1726 | D153: 52372.94307 | E153: 4582.683097 | F153: 454.2902707 | G153: 154952.3786 | H153: 55230.34256
B154: Sul De Lula | C154: 59717.92295 | D154: 0 | E154: 2352.446281 | F154: 0 | G154: 74514.3631 | H154: 0
B155: Berbigão | C155: 56325.43824 | D155: 0 | E155: 724.796971 | F155: 0 | G155: 60884.27348 | H155: 0
B156: Mero | C156: 26380.85301 | D156: 0 | E156: 1785.194404 | F156: 0 | G156: 37609.38663 | H156: 0
B157: Lapa | C157: 29129.46242 | D157: 0 | E157: 931.045248 | F157: 0 | G157: 34985.56013 | H157: 0
B158: Sururu | C158: 27784.81946 | D158: 0 | E158: 933.213368 | F158: 0 | G158: 33654.55424 | H158: 0
B159: Albacora | C159: 7970.91121 | D159: 15014.88941 | E159: 253.470093 | F159: 206.9865087 | G159: 9565.189936 | H159: 16316.79523
B160: Sudoeste De Sapinhoá | C160: 5065.832024 | D160: 0 | E160: 227.0042807 | F160: 0 | G160: 6493.645818 | H160: 0
B161: Marlim Leste | C161: 5330.017072 | D161: 25521.99158 | E161: 66.74115433 | F161: 399.9646637 | G161: 5749.806252 | H161: 28037.69332
B162: Anc_Lula | C162: 4473.765927 | D162: 0 | E162: 176.2329773 | F162: 0 | G162: 5582.23787 | H162: 0
B163: Atapu | C163: 3458.902805 | D163: 0 | E163: 129.640056 | F163: 0 | G163: 4274.314125 | H163: 0
B164: Tambuatá | C164: 3312.440654 | D164: 0 | E164: 125.7663473 | F164: 0 | G164: 4103.487083 | H164: 0
B165: Barracuda | C165: 3412.010646 | D165: 34555.51803 | E165: 89.46115533 | F165: 672.6257533 | G165: 3974.704316 | H165: 38786.20622
B166: Noroeste De Sapinhoa | C166: 2946.714391 | D166: 0 | E166: 132.044738 | F166: 0 | G166: 3777.250705 | H166: 0
B167: Caratinga | C167: 3149.548289 | D167: 8863.311068 | E167: 82.57952633 | F167: 235.531136 | G167: 3668.957819 | H167: 10344.75716
B168: Marlim | C168: 2890.990834 | D168: 75331.93158 | E168: 79.12989567 | F168: 920.5120743 | G168: 3388.702843 | H168: 81121.77763
B169: Voador | C169: 1502.622505 | D169: 0 | E169: 41.12858267 | F169: 0 | G169: 1761.313476 | H169: 0
B170: Oeste De Atapu | C170: 718.281739 | D170: 0 | E170: 26.92127533 | F170: 0 | G170: 887.6114458 | H170: 0
B171: Nordeste De Sapinhoá | C171: 613.1206549 | D171: 0 | E171: 27.47432867 | F171: 0 | G171: 785.9289621 | H171: 0
B172: Anc_Brava | C172: 104.5830694 | D172: 0 | E172: 2.86256 | F172: 0 | G172: 122.5880279 | H172: 0
B173: Anc_Norte_Atapu | C173: 40.06384004 | D173: 0 | E173: 1.501594667 | F173: 0 | G173: 49.50858519 | H173: 0
B174: Total Geral | C174: 2124884.836 | D174: 211660.5848 | E174: 86766.41656 | F174: 2889.910407 | G174: 2670629.11 | H174: 229837.5721
B176: Tabela Adicional 1. Produção dos poços do Pré-sal¹ (antiga tabela 11 do BMP)
B178: Nome ANP do Poço | C178: Campo | D178: Bacia | E178: Petróleo (bbl/d) | F178: Gás natural (Mm³/d) | G178: Produção Total (boe/d)
B179: 7-BUZ-29D-RJS | C179: Búzios/Tambuatá | D179: Santos | E179: 54093.97179 | F179: 1975.461639 | G179: 66519.25016
B180: 7-BUZ-12-RJS | C180: Búzios/Tambuatá | D180: Santos | E180: 43990.50805 | F180: 1549.289185 | G180: 53735.24265
B181: 7-BUZ-14DA-RJS | C181: Búzios/Tambuatá | D181: Santos | E181: 42971.48523 | F181: 1696.301542 | G181: 53640.89964
B182: 7-BUZ-10-RJS | C182: Búzios/Tambuatá | D182: Santos | E182: 42995.04749 | F182: 1436.512421 | G182: 52030.43768
B183: 9-BRSA-1191-RJS | C183: Búzios | D183: Santos | E183: 41197.08748 | F183: 1623.312346 | G183: 51407.41371
B184: 9-BUZ-3-RJS | C184: Búzios | D184: Santos | E184: 40272.45417 | F184: 1502.695382 | G184: 49724.12262
B185: 7-BUZ-30-RJS | C185: Búzios/Tambuatá | D185: Santos | E185: 35508.10278 | F185: 1268.063506 | G185: 43483.9813
B186: 7-BUZ-25-RJS | C186: Búzios/Tambuatá | D186: Santos | E186: 33497.52329 | F186: 1331.44117 | G186: 41872.03527
B187: 7-SPH-20D-SPS | C187: Nordeste De Sapinhoá/Noroeste De Sapinhoa/Sapinhoá/Sudoeste De Sapinhoá | D187: Santos | E187: 31384.72471 | F187: 1195.689845 | G187: 38905.38666
B188: 9-LL-2-RJS | C188: Lula | D188: Santos | E188: 27004.0159 | F188: 1871.456848 | G188: 38775.1239
B189: 3-BRSA-1305A-RJS | C189: Mero | D189: Santos | E189: 26380.85301 | F189: 1785.194404 | G189: 37609.38663
B190: 9-BUZ-4-RJS | C190: Búzios | D190: Santos | E190: 30467.82538 | F190: 1079.92296 | G190: 37260.33562
B191: 3-BRSA-1064-RJS | C191: Búzios/Tambuatá | D191: Santos | E191: 29134.02064 | F191: 1232.185991 | G191: 36884.23641
B192: 7-LL-15D-RJS | C192: Anc_Lula/Lula/Sul De Lula | D192: Santos | E192: 28184.28389 | F192: 1313.636138 | G192: 36446.80561 | I192: Mar | J192: Petrobras | K192: 24.07417933
B193: 4-BRSA-711-RJS | C193: Lula | D193: Santos | E193: 25988.5418 | F193: 1602.517786 | G193: 36068.0742
B194: 7-SPH-17-SPS | C194: Nordeste De Sapinhoá/Noroeste De Sapinhoa/Sapinhoá/Sudoeste De Sapinhoá | D194: Santos | E194: 27211.57036 | F194: 1268.943127 | G194: 35192.98152
B195: 9-BUZ-1-RJS | C195: Búzios | D195: Santos | E195: 28235.67476 | F195: 1079.456702 | G195: 35025.25232
B196: 7-LL-83D-RJS | C196: Lula | D196: Santos | E196: 26524.49672 | F196: 1236.539045 | G196: 34302.09238
B197: 7-LL-80DB-RJS | C197: Anc_Lula/Lula/Sul De Lula | D197: Santos | E197: 27084.8547 | F197: 1095.296498 | G197: 33974.06157
B198: 7-SRR-2-RJS | C198: Sururu | D198: Santos | E198: 27784.81946 | F198: 933.213368 | G198: 33654.55424
B199: 9-LL-20D-RJS | C199: Lula | D199: Santos | E199: 25277.0429 | F199: 1236.436876 | G199: 33053.99592
B200: 3-BRSA-1053-RJS | C200: Búzios/Tambuatá | D200: Santos | E200: 26047.86792 | F200: 1066.632352 | G200: 32756.78275
B201: 7-LL-36A-RJS | C201: Lula | D201: Santos | E201: 23513.00425 | F201: 1466.519671 | G201: 32737.13435
B202: 7-SLL-5-RJS | C202: Anc_Lula/Lula/Sul De Lula | D202: Santos | E202: 26927.42974 | F202: 911.5392137 | G202: 32660.8382
B203: 9-LL-12D-RJS | C203: Anc_Lula | D203: Santos | E203: 25473.80979 | F203: 1045.20473 | G203: 32047.94895
B204: 7-SLL-2-RJS | C204: Anc_Lula/Lula/Sul De Lula | D204: Santos | E204: 26124.35373 | F204: 902.97309 | G204: 31803.8829
B205: 7-LL-113D-RJS | C205: Anc_Lula/Lula/Sul De Lula | D205: Santos | E205: 26521.61875 | F205: 828.9522463 | G205: 31735.57087
B206: 7-LL-67D-RJS | C206: Anc_Lula/Lula/Sul De Lula | D206: Santos | E206: 24566.68228 | F206: 1121.11301 | G206: 31618.2701
B207: 7-BBG-2D-RJS | C207: Berbigão | D207: Santos | E207: 28960.07739 | F207: 381.186923 | G207: 31357.67071
B208: 8-LL-87D-RJS | C208: Anc_Lula | D208: Santos | E208: 25477.18762 | F208: 866.3860693 | G208: 30926.59139
B209: 7-LL-51-RJS | C209: Lula | D209: Santos | E209: 23050.42395 | F209: 1230.580573 | G209: 30790.54195
B210: 7-LL-28D-RJS | C210: Anc_Lula/Lula/Sul De Lula | D210: Santos | E210: 25191.49165 | F210: 889.8594497 | G210: 30788.53851
B211: 7-LL-70-RJS | C211: Anc_Lula/Lula/Sul De Lula | D211: Santos | E211: 24240.33108 | F211: 927.6522553 | G211: 30075.08751
B212: 3-BRSA-1184-RJS | C212: Búzios/Tambuatá | D212: Santos | E212: 24636.95703 | F212: 846.6028787 | G212: 29961.92828
B213: 7-LL-61-RJS | C213: Anc_Lula/Lula/Sul De Lula | D213: Santos | E213: 24610.43211 | F213: 832.576138 | G213: 29847.17783
B214: 7-SPH-1-SPS | C214: Nordeste De Sapinhoá/Noroeste De Sapinhoa/Sapinhoá/Sudoeste De Sapinhoá | D214: Santos | E214: 24473.40683 | F214: 822.7818643 | G214: 29648.54843
B215: 9-BBG-1D-RJS | C215: Berbigão | D215: Santos | E215: 27365.36085 | F215: 343.610048 | G215: 29526.60276
... 82 more rows

Sheet 3. Ranking
B2: 3. RANKING DA PRODUÇÃO
B6: Tabela 11. Os 30 poços com maior produção de petróleo (bbl/d)
B8: Nº | C8: Nome ANP do Poço | D8: Campo | E8: Bacia | F8: Localização | G8: Petróleo (bbl/d)
B9: 1 | C9: 7-BUZ-29D-RJS | D9: Búzios/Tambuatá | E9: Santos | F9: Mar | G9: 54093.97179
B10: 2 | C10: 7-BUZ-12-RJS | D10: Búzios/Tambuatá | E10: Santos | F10: Mar | G10: 43990.50805
B11: 3 | C11: 7-BUZ-10-RJS | D11: Berbigão | E11: Santos | F11: Mar | G11: 42995.04749
B12: 4 | C12: 7-BUZ-14DA-RJS | D12: Búzios/Tambuatá | E12: Santos | F12: Mar | G12: 42971.48523
B13: 5 | C13: 9-BRSA-1191-RJS | D13: Búzios/Tambuatá | E13: Santos | F13: Mar | G13: 41197.08748
B14: 6 | C14: 9-BUZ-3-RJS | D14: Búzios/Tambuatá | E14: Santos | F14: Mar | G14: 40272.45417
B15: 7 | C15: 7-BUZ-30-RJS | D15: Búzios/Tambuatá | E15: Santos | F15: Mar | G15: 35508.10278
B16: 8 | C16: 7-BUZ-25-RJS | D16: Búzios/Tambuatá | E16: Santos | F16: Mar | G16: 33497.52329
B17: 9 | C17: 7-SPH-20D-SPS | D17: Nordeste De Sapinhoá/Noroeste De Sapinhoa/Sapinhoá/Sudoeste De Sapinhoá | E17: Santos | F17: Mar | G17: 31384.72471
B18: 10 | C18: 9-BUZ-4-RJS | D18: Búzios/Tambuatá | E18: Santos | F18: Mar | G18: 30467.82538
B19: 11 | C19: 3-BRSA-1064-RJS | D19: Búzios/Tambuatá | E19: Santos | F19: Mar | G19: 29134.02064
B20: 12 | C20: 7-BBG-2D-RJS | D20: Berbigão | E20: Santos | F20: Mar | G20: 28960.07739
B21: 13 | C21: 9-BUZ-1-RJS | D21: Búzios/Tambuatá | E21: Santos | F21: Mar | G21: 28235.67476
B22: 14 | C22: 7-LL-15D-RJS | D22: Anc_Lula/Lula/Sul De Lula | E22: Santos | F22: Mar | G22: 28184.28389
B23: 15 | C23: 7-SRR-2-RJS | D23: Sururu | E23: Santos | F23: Mar | G23: 27784.81946
B24: 16 | C24: 9-BBG-1D-RJS | D24: Berbigão | E24: Santos | F24: Mar | G24: 27365.36085
B25: 17 | C25: 7-SPH-17-SPS | D25: Nordeste De Sapinhoá/Noroeste De Sapinhoa/Sapinhoá/Sudoeste De Sapinhoá | E25: Santos | F25: Mar | G25: 27211.57036
B26: 18 | C26: 7-LL-80DB-RJS | D26: Anc_Lula/Lula/Sul De Lula | E26: Santos | F26: Mar | G26: 27084.8547
B27: 19 | C27: 9-LL-2-RJS | D27: Lula | E27: Santos | F27: Mar | G27: 27004.0159
B28: 20 | C28: 7-SLL-5-RJS | D28: Anc_Lula/Lula/Sul De Lula | E28: Santos | F28: Mar | G28: 26927.42974
B29: 21 | C29: 7-LL-83D-RJS | D29: Lula | E29: Santos | F29: Mar | G29: 26524.49672
B30: 22 | C30: 7-LL-113D-RJS | D30: Anc_Lula/Lula/Sul De Lula | E30: Santos | F30: Mar | G30: 26521.61875
B31: 23 | C31: 3-BRSA-1305A-RJS | D31: Mero | E31: Santos | F31: Mar | G31: 26380.85301
B32: 24 | C32: 7-SLL-2-RJS | D32: Anc_Lula/Lula/Sul De Lula | E32: Santos | F32: Mar | G32: 26124.35373
B33: 25 | C33: 3-BRSA-1053-RJS | D33: Búzios/Tambuatá | E33: Santos | F33: Mar | G33: 26047.86792
B34: 26 | C34: 4-BRSA-711-RJS | D34: Lula | E34: Santos | F34: Mar | G34: 25988.5418
B35: 27 | C35: 8-LL-87D-RJS | D35: Anc_Lula/Lula/Sul De Lula | E35: Santos | F35: Mar | G35: 25477.18762
B36: 28 | C36: 9-LL-12D-RJS | D36: Anc_Lula/Lula/Sul De Lula | E36: Santos | F36: Mar | G36: 25473.80979
B37: 29 | C37: 9-LL-20D-RJS | D37: Lula | E37: Santos | F37: Mar | G37: 25277.0429
B38: 30 | C38: 7-LL-28D-RJS | D38: Anc_Lula/Lula/Sul De Lula | E38: Santos | F38: Mar | G38: 25191.49165
B41: Tabela 12. Os 30 poços com maior produção de gás natural (Mm³/d)
B43: Nº | C43: Nome ANP do Poço | D43: Campo | E43: Bacia | F43: Localização | G43: Gás Natural (Mm³/d)
B44: 1 | C44: 7-BUZ-29D-RJS | D44: Búzios/Tambuatá | E44: Santos | F44: Mar | G44: 1975.461639
B45: 2 | C45: 9-LL-2-RJS | D45: Lula | E45: Santos | F45: Mar | G45: 1871.456848
B46: 3 | C46: 3-BRSA-1305A-RJS | D46: Mero | E46: Santos | F46: Mar | G46: 1785.194404
B47: 4 | C47: 7-BUZ-14DA-RJS | D47: Búzios/Tambuatá | E47: Santos | F47: Mar | G47: 1696.301542
B48: 5 | C48: 9-BRSA-1191-RJS | D48: Búzios/Tambuatá | E48: Santos | F48: Mar | G48: 1623.312346
B49: 6 | C49: 4-BRSA-711-RJS | D49: Lula | E49: Santos | F49: Mar | G49: 1602.517786
B50: 7 | C50: 7-MXL-18HA-SPS | D50: Mexilhão | E50: Santos | F50: Mar | G50: 1597.138023
B51: 8 | C51: 7-BUZ-12-RJS | D51: Búzios/Tambuatá | E51: Santos | F51: Mar | G51: 1549.289185
B52: 9 | C52: 9-BUZ-3-RJS | D52: Búzios/Tambuatá | E52: Santos | F52: Mar | G52: 1502.695382
B53: 10 | C53: 7-LL-36A-RJS | D53: Lula | E53: Santos | F53: Mar | G53: 1466.519671
B54: 11 | C54: 7-MXL-17HPA-SPS | D54: Mexilhão | E54: Santos | F54: Mar | G54: 1456.915795
B55: 12 | C55: 7-BUZ-10-RJS | D55: Búzios/Tambuatá | E55: Santos | F55: Mar | G55: 1436.512421
B56: 13 | C56: 7-SPH-3-SPS | D56: Nordeste De Sapinhoá/Noroeste De Sapinhoa/Sapinhoá/Sudoeste De Sapinhoá | E56: Santos | F56: Mar | G56: 1383.82496
B57: 14 | C57: 7-LL-73D-RJS | D57: Lula | E57: Santos | F57: Mar | G57: 1378.579267
B58: 15 | C58: 7-BUZ-25-RJS | D58: Búzios/Tambuatá | E58: Santos | F58: Mar | G58: 1331.44117
B59: 16 | C59: 7-LL-15D-RJS | D59: Anc_Lula/Lula/Sul De Lula | E59: Santos | F59: Mar | G59: 1313.636138
B60: 17 | C60: 3-BRSA-830-RJS | D60: Lula | E60: Santos | F60: Mar | G60: 1287.924076
B61: 18 | C61: 7-SPH-17-SPS | D61: Nordeste De Sapinhoá/Noroeste De Sapinhoa/Sapinhoá/Sudoeste De Sapinhoá | E61: Santos | F61: Mar | G61: 1268.943127
B62: 19 | C62: 7-BUZ-30-RJS | D62: Búzios/Tambuatá | E62: Santos | F62: Mar | G62: 1268.063506
B63: 20 | C63: 7-LL-83D-RJS | D63: Lula | E63: Santos | F63: Mar | G63: 1236.539045
B64: 21 | C64: 9-LL-20D-RJS | D64: Lula | E64: Santos | F64: Mar | G64: 1236.436876
B65: 22 | C65: 3-BRSA-1064-RJS | D65: Búzios/Tambuatá | E65: Santos | F65: Mar | G65: 1232.185991
B66: 23 | C66: 7-LL-51-RJS | D66: Lula | E66: Santos | F66: Mar | G66: 1230.580573
B67: 24 | C67: 7-SPH-20D-SPS | D67: Nordeste De Sapinhoá/Noroeste De Sapinhoa/Sapinhoá/Sudoeste De Sapinhoá | E67: Santos | F67: Mar | G67: 1195.689845
B68: 25 | C68: 7-SPH-14D-SPS | D68: Nordeste De Sapinhoá/Noroeste De Sapinhoa/Sapinhoá/Sudoeste De Sapinhoá | E68: Santos | F68: Mar | G68: 1170.517471
B69: 26 | C69: 8-LL-81D-RJS | D69: Anc_Lula/Lula/Sul De Lula | E69: Santos | F69: Mar | G69: 1168.696671
B70: 27 | C70: 7-LL-67D-RJS | D70: Anc_Lula/Lula/Sul De Lula | E70: Santos | F70: Mar | G70: 1121.11301
B71: 28 | C71: 7-LL-80DB-RJS | D71: Anc_Lula/Lula/Sul De Lula | E71: Santos | F71: Mar | G71: 1095.296498
B72: 29 | C72: 9-BUZ-4-RJS | D72: Búzios/Tambuatá | E72: Santos | F72: Mar | G72: 1079.92296
B73: 30 | C73: 9-BUZ-1-RJS | D73: Búzios/Tambuatá | E73: Santos | F73: Mar | G73: 1079.456702
B76: Tabela 13. Os 30 poços com maior produção total (boe/d)
B78: Nº | C78: Nome ANP do Poço | D78: Campo | E78: Bacia | F78: Localização | G78: Produção (boe/d)
B79: 1 | C79: 7-BUZ-29D-RJS | D79: Búzios/Tambuatá | E79: Santos | F79: Mar | G79: 66519.25016
B80: 2 | C80: 7-BUZ-12-RJS | D80: Búzios/Tambuatá | E80: Santos | F80: Mar | G80: 53735.24265
B81: 3 | C81: 7-BUZ-14DA-RJS | D81: Búzios/Tambuatá | E81: Santos | F81: Mar | G81: 53640.89964
B82: 4 | C82: 7-BUZ-10-RJS | D82: Búzios/Tambuatá | E82: Santos | F82: Mar | G82: 52030.43768
B83: 5 | C83: 9-BRSA-1191-RJS | D83: Búzios/Tambuatá | E83: Santos | F83: Mar | G83: 51407.41371
B84: 6 | C84: 9-BUZ-3-RJS | D84: Búzios/Tambuatá | E84: Santos | F84: Mar | G84: 49724.12262
B85: 7 | C85: 7-BUZ-30-RJS | D85: Búzios/Tambuatá | E85: Santos | F85: Mar | G85: 43483.9813
B86: 8 | C86: 7-BUZ-25-RJS | D86: Búzios/Tambuatá | E86: Santos | F86: Mar | G86: 41872.03527
B87: 9 | C87: 7-SPH-20D-SPS | D87: Nordeste De Sapinhoá/Noroeste De Sapinhoa/Sapinhoá/Sudoeste De Sapinhoá | E87: Santos | F87: Mar | G87: 38905.38666
B88: 10 | C88: 9-LL-2-RJS | D88: Lula | E88: Santos | F88: Mar | G88: 38775.1239
B89: 11 | C89: 3-BRSA-1305A-RJS | D89: Mero | E89: Santos | F89: Mar | G89: 37609.38663
B90: 12 | C90: 9-BUZ-4-RJS | D90: Búzios/Tambuatá | E90: Santos | F90: Mar | G90: 37260.33562
B91: 13 | C91: 3-BRSA-1064-RJS | D91: Búzios/Tambuatá | E91: Santos | F91: Mar | G91: 36884.23641
B92: 14 | C92: 7-LL-15D-RJS | D92: Anc_Lula/Lula/Sul De Lula | E92: Santos | F92: Mar | G92: 36446.80561
B93: 15 | C93: 4-BRSA-711-RJS | D93: Lula | E93: Santos | F93: Mar | G93: 36068.0742
B94: 16 | C94: 7-SPH-17-SPS | D94: Nordeste De Sapinhoá/Noroeste De Sapinhoa/Sapinhoá/Sudoeste De Sapinhoá | E94: Santos | F94: Mar | G94: 35192.98152
B95: 17 | C95: 9-BUZ-1-RJS | D95: Búzios/Tambuatá | E95: Santos | F95: Mar | G95: 35025.25232
B96: 18 | C96: 7-LL-83D-RJS | D96: Lula | E96: Santos | F96: Mar | G96: 34302.09238
B97: 19 | C97: 7-LL-80DB-RJS | D97: Anc_Lula/Lula/Sul De Lula | E97: Santos | F97: Mar | G97: 33974.06157
B98: 20 | C98: 7-SRR-2-RJS | D98: Sururu | E98: Santos | F98: Mar | G98: 33654.55424
B99: 21 | C99: 9-LL-20D-RJS | D99: Lula | E99: Santos | F99: Mar | G99: 33053.99592
B100: 22 | C100: 3-BRSA-1053-RJS | D100: Búzios/Tambuatá | E100: Santos | F100: Mar | G100: 32756.78275
B101: 23 | C101: 7-LL-36A-RJS | D101: Lula | E101: Santos | F101: Mar | G101: 32737.13435
B102: 24 | C102: 7-SLL-5-RJS | D102: Anc_Lula/Lula/Sul De Lula | E102: Santos | F102: Mar | G102: 32660.8382
B103: 25 | C103: 9-LL-12D-RJS | D103: Anc_Lula/Lula/Sul De Lula | E103: Santos | F103: Mar | G103: 32047.94895
B104: 26 | C104: 7-SLL-2-RJS | D104: Anc_Lula/Lula/Sul De Lula | E104: Santos | F104: Mar | G104: 31803.8829
B105: 27 | C105: 7-LL-113D-RJS | D105: Anc_Lula/Lula/Sul De Lula | E105: Santos | F105: Mar | G105: 31735.57087
B106: 28 | C106: 7-LL-67D-RJS | D106: Anc_Lula/Lula/Sul De Lula | E106: Santos | F106: Mar | G106: 31618.2701
B107: 29 | C107: 7-BBG-2D-RJS | D107: Berbigão | E107: Santos | F107: Mar | G107: 31357.67071
B108: 30 | C108: 8-LL-87D-RJS | D108: Anc_Lula/Lula/Sul De Lula | E108: Santos | F108: Mar | G108: 30926.59139
B111: Tabela 14. Os 30 poços terrestres com maior produção de petróleo (bbl/d)
B113: Nº | C113: Nome ANP do Poço | D113: Campo | E113: Bacia | F113: Localização | G113: Petróleo (bbl/d)
B114: 1 | C114: 7-TIE-1D-BA | D114: Tiê | E114: Recôncavo | F114: Terra | G114: 1722.078941
B115: 2 | C115: 1-BRSA-769-AM | D115: Arara Azul | E115: Solimões | F115: Terra | G115: 1320.921111
B116: 3 | C116: 3-GTE-3D-BA | D116: Tiê | E116: Recôncavo | F116: Terra | G116: 648.1245525
B117: 4 | C117: 3-SUC-3-AM | D117: Rio Urucu | E117: Solimões | F117: Terra | G117: 562.7769759
B118: 5 | C118: 7-LUC-38HP-AM | D118: Leste Do Urucu | E118: Solimões | F118: Terra | G118: 543.217973
B119: 6 | C119: 7-LUC-67HP-AM | D119: Leste Do Urucu | E119: Solimões | F119: Terra | G119: 488.9083989
B120: 7 | C120: 7-LUC-25-AM | D120: Leste Do Urucu | E120: Solimões | F120: Terra | G120: 475.6807188
B121: 8 | C121: 7-LUC-65HP-AM | D121: Leste Do Urucu | E121: Solimões | F121: Terra | G121: 464.0753904
B122: 9 | C122: 7-LUC-63HP-AM | D122: Leste Do Urucu | E122: Solimões | F122: Terra | G122: 442.6950682
B123: 10 | C123: 3-GTE-4DPA-BA | D123: Tiê | E123: Recôncavo | F123: Terra | G123: 431.4790518
B124: 11 | C124: 9-RUC-75D-AM | D124: Rio Urucu | E124: Solimões | F124: Terra | G124: 412.6620641
B125: 12 | C125: 7-LUC-42HP-AM | D125: Leste Do Urucu | E125: Solimões | F125: Terra | G125: 385.5395648
B126: 13 | C126: 7-LUC-57HP-AM | D126: Leste Do Urucu | E126: Solimões | F126: Terra | G126: 380.9509387
B127: 14 | C127: 7-RUC-39HP-AM | D127: Rio Urucu | E127: Solimões | F127: Terra | G127: 379.2744947
B128: 15 | C128: 7-LUC-80DP-AM | D128: Leste Do Urucu | E128: Solimões | F128: Terra | G128: 372.9463169
B129: 16 | C129: 7-LUC-41HP-AM | D129: Leste Do Urucu | E129: Solimões | F129: Terra | G129: 372.19133
B130: 17 | C130: 7-LUC-71HP-AM | D130: Leste Do Urucu | E130: Solimões | F130: Terra | G130: 355.5466058
B131: 18 | C131: 7-RUC-112HPA-AM | D131: Rio Urucu | E131: Solimões | F131: Terra | G131: 346.942565
B132: 19 | C132: 7-LUC-32HA-AM | D132: Leste Do Urucu | E132: Solimões | F132: Terra | G132: 336.3958116
B133: 20 | C133: 7-CNC-28-ES | D133: Cancã | E133: Espírito Santo | F133: Terra | G133: 319.3005274
B134: 21 | C134: 7-MJ-94D-BA | D134: Mata De São João | E134: Recôncavo | F134: Terra | G134: 306.2846042
B135: 22 | C135: 4-LUC-3-AM | D135: Leste Do Urucu | E135: Solimões | F135: Terra | G135: 306.2330278
B136: 23 | C136: 9-RUC-97DP-AM | D136: Rio Urucu | E136: Solimões | F136: Terra | G136: 304.1529876
B137: 24 | C137: 7-CNC-24-ES | D137: Cancã | E137: Espírito Santo | F137: Terra | G137: 284.7791148
B138: 25 | C138: 7-LUC-84HP-AM | D138: Leste Do Urucu | E138: Solimões | F138: Terra | G138: 276.8805811
B139: 26 | C139: 7-C-207-BA | D139: Candeias | E139: Recôncavo | F139: Terra e Mar | G139: 276.0322954
B140: 27 | C140: 3-RUC-16D-AM | D140: Rio Urucu | E140: Solimões | F140: Terra | G140: 272.6538288
B141: 28 | C141: 7-LUC-69HP-AM | D141: Leste Do Urucu | E141: Solimões | F141: Terra | G141: 269.0833133
B142: 29 | C142: 7-LUC-59HP-AM | D142: Leste Do Urucu | E142: Solimões | F142: Terra | G142: 268.6899905
B143: 30 | C143: 7-RUC-103DP-AM | D143: Rio Urucu | E143: Solimões | F143: Terra | G143: 263.5799392
B146: Tabela 15. Os 30 poços terrestres com maior produção de gás natural (Mm³/d)
B148: Nº | C148: Nome ANP do Poço | D148: Campo | E148: Bacia | F148: Localização | G148: Gás Natural (Mm³/d)
B149: 1 | C149: 7-LUC-65HP-AM | D149: Leste Do Urucu | E149: Solimões | F149: Terra | G149: 457.215688
B150: 2 | C150: 7-LUC-42HP-AM | D150: Leste Do Urucu | E150: Solimões | F150: Terra | G150: 453.2609057
B151: 3 | C151: 9-RUC-75D-AM | D151: Rio Urucu | E151: Solimões | F151: Terra | G151: 432.9788493
B152: 4 | C152: 7-RUC-56HP-AM | D152: Rio Urucu | E152: Solimões | F152: Terra | G152: 432.6944173
B153: 5 | C153: 7-LUC-63HP-AM | D153: Leste Do Urucu | E153: Solimões | F153: Terra | G153: 424.8329887
B154: 6 | C154: 7-RUC-39HP-AM | D154: Rio Urucu | E154: Solimões | F154: Terra | G154: 413.7074653
B155: 7 | C155: 3-RUC-16D-AM | D155: Rio Urucu | E155: Solimões | F155: Terra | G155: 412.5358163
B156: 8 | C156: 7-LUC-71HP-AM | D156: Leste Do Urucu | E156: Solimões | F156: Terra | G156: 406.6062923
B157: 9 | C157: 7-LUC-84HP-AM | D157: Leste Do Urucu | E157: Solimões | F157: Terra | G157: 405.0895097
B158: 10 | C158: 7-LUC-57HP-AM | D158: Leste Do Urucu | E158: Solimões | F158: Terra | G158: 384.6364147
B159: 11 | C159: 7-LUC-80DP-AM | D159: Leste Do Urucu | E159: Solimões | F159: Terra | G159: 383.1839923
B160: 12 | C160: 7-GVR-18-MA | D160: Gavião Real | E160: Parnaíba | F160: Terra | G160: 382.2668307
B161: 13 | C161: 7-RUC-67HPA-AM | D161: Rio Urucu | E161: Solimões | F161: Terra | G161: 354.6826983
B162: 14 | C162: 7-GVR-24D-MA | D162: Gavião Real | E162: Parnaíba | F162: Terra | G162: 353.281557
B163: 15 | C163: 7-GVR-25D-MA | D163: Gavião Real | E163: Parnaíba | F163: Terra | G163: 347.8673343
B164: 16 | C164: 7-LUC-38HP-AM | D164: Leste Do Urucu | E164: Solimões | F164: Terra | G164: 338.8894733
B165: 17 | C165: 7-RUC-103DP-AM | D165: Rio Urucu | E165: Solimões | F165: Terra | G165: 336.536349
B166: 18 | C166: 7-LUC-41HP-AM | D166: Leste Do Urucu | E166: Solimões | F166: Terra | G166: 320.4425757
B167: 19 | C167: 1-BRSA-769-AM | D167: Arara Azul | E167: Solimões | F167: Terra | G167: 316.515349
B168: 20 | C168: 9-RUC-104DP-AM | D168: Rio Urucu | E168: Solimões | F168: Terra | G168: 299.5668637
B169: 21 | C169: 7-LUC-17-AM | D169: Leste Do Urucu | E169: Solimões | F169: Terra | G169: 274.907571
B170: 22 | C170: 3-RUC-8-AM | D170: Rio Urucu | E170: Solimões | F170: Terra | G170: 268.1574023
B171: 23 | C171: 9-RUC-97DP-AM | D171: Rio Urucu | E171: Solimões | F171: Terra | G171: 259.105433
B172: 24 | C172: 7-LUC-59HP-AM | D172: Leste Do Urucu | E172: Solimões | F172: Terra | G172: 255.466791
B173: 25 | C173: 7-RUC-24D-AM | D173: Rio Urucu | E173: Solimões | F173: Terra | G173: 244.1063283
B174: 26 | C174: 7-LUC-73HP-AM | D174: Leste Do Urucu | E174: Solimões | F174: Terra | G174: 239.5283027
B175: 27 | C175: 7-LUC-22DP-AM | D175: Leste Do Urucu | E175: Solimões | F175: Terra | G175: 235.3838223
B176: 28 | C176: 7-RUC-65DP-AM | D176: Rio Urucu | E176: Solimões | F176: Terra | G176: 235.1172603
B177: 29 | C177: 7-RUC-18D-AM | D177: Rio Urucu | E177: Solimões | F177: Terra | G177: 232.8276317
B178: 30 | C178: 3-LUC-8-AM | D178: Leste Do Urucu | E178: Solimões | F178: Terra | G178: 229.708993
B181: Tabela 16. As 30 instalações com maior produção de petróleo (bbl/d)
B183: Instalação | C183: Petróleo (bbl/d) | D183: Gás natural (Mm³/d) | E183: Produção (boe/d) | F183: Nº poços produtores | G183: Campos Produtores
B184: PETROBRAS 75 (P-75) | C184: 163409.3414 | D184: 5981.301794 | E184: 201030.5932 | F184: 4 | G184: Búzios/Tambuatá
B185: PETROBRAS 69 | C185: 141819.2509 | D185: 5160.244528 | E185: 174276.2085 | F185: 6 | G185: Anc_Lula/Lula/Sul De Lula
B186: FPSO CIDADE DE ILHA BELA | C186: 140191.9747 | D186: 5786.493385 | E186: 176587.9186 | F186: 8 | G186: Nordeste De Sapinhoá/Noroeste De Sapinhoa/Sapinhoá/Sudoeste De Sapinhoá
B187: FPSO CIDADE DE ITAGUAÍ | C187: 139036.5352 | D187: 7564.532125 | E187: 186616.005 | F187: 7 | G187: Lula
B188: FPSO CIDADE DE SAQUAREMA | C188: 138423.5983 | D188: 6183.024395 | E188: 177313.6469 | F188: 7 | G188: Anc_Lula/Lula/Sul De Lula
B189: PETROBRAS 77 | C189: 134603.3932 | D189: 4743.87853 | E189: 164441.4879 | F189: 4 | G189: Búzios/Tambuatá
B190: PETROBRAS 74 (P-74) | C190: 130373.9426 | D190: 5405.653558 | E190: 164374.4764 | F190: 5 | G190: Búzios/Tambuatá
B191: FPSO CIDADE DE MANGARATIBA | C191: 129939.3041 | D191: 7429.438529 | E191: 176669.0609 | F191: 8 | G191: Lula
B192: FPSO CIDADE DE MARICÁ | C192: 124586.7314 | D192: 4642.960487 | E192: 153790.0707 | F192: 7 | G192: Anc_Lula/Lula/Sul De Lula
B193: PETROBRAS 66 (P-66) | C193: 122680.8078 | D193: 5262.036238 | E193: 155778.0159 | F193: 7 | G193: Anc_Lula/Lula/Sul De Lula
B194: PETROBRAS 67 (P-67) | C194: 121625.2626 | D194: 4301.938187 | E194: 148683.6364 | F194: 5 | G194: Anc_Lula/Lula/Sul De Lula
B195: FPSO CIDADE DE CAMPOS DOS GOYTACAZES | C195: 101886.6841 | D195: 1171.499405 | E195: 109255.1927 | F195: 9 | G195: Tartaruga Verde/Tartaruga Verde Sudoeste
B196: FPSO CIDADE DE PARATY | C196: 96881.17938 | D196: 3692.33993 | E196: 120105.296 | F196: 5 | G196: Anc_Lula/Lula/Sul De Lula
B197: PETROBRAS 58 | C197: 96149.08412 | D197: 3418.887625 | E197: 117653.2377 | F197: 10 | G197: Jubarte
B198: FPSO CIDADE DE SÃO PAULO | C198: 92934.26982 | D198: 4660.100335 | E198: 122245.4155 | F198: 6 | G198: Nordeste De Sapinhoá/Noroeste De Sapinhoa/Sapinhoá/Sudoeste De Sapinhoá
B199: PETROBRAS 76 | C199: 88132.99383 | D199: 3480.334234 | E199: 110023.6349 | F199: 4 | G199: Búzios/Tambuatá
B200: PETROBRAS 68 | C200: 84110.2577 | D200: 1658.010339 | E200: 94538.82771 | F200: 3 | G200: Berbigão/Sururu
B201: FPSO CIDADE DE ANGRA DOS REIS | C201: 65919.57292 | D201: 2741.771329 | E201: 83164.79364 | F201: 6 | G201: Anc_Lula/Lula/Sul De Lula
B202: PETROBRAS 52 | C202: 51722.28382 | D202: 975.7503557 | E202: 57859.56817 | F202: 11 | G202: Roncador
B203: PETROBRAS 40 | C203: 49375.65006 | D203: 726.199421 | E203: 53943.30644 | F203: 13 | G203: Marlim/Marlim Sul
B204: PETROBRAS 57 | C204: 47467.02818 | D204: 397.822601 | E204: 49969.25676 | F204: 15 | G204: Jubarte
B205: FPSO ESPIRITO SANTO | C205: 40464.71708 | D205: 376.960729 | E205: 42835.72844 | F205: 23 | G205: Argonauta/Ostra
B206: PETROBRAS 55 | C206: 36983.31125 | D206: 593.3140223 | E206: 40715.14372 | F206: 12 | G206: Roncador
B207: PETROBRAS 50 | C207: 35799.25178 | D207: 594.9562767 | E207: 39541.41372 | F207: 15 | G207: Albacora/Albacora Leste
B208: FPSO CIDADE DE ANCHIETA | C208: 34885.00338 | D208: 1220.263141 | E208: 42560.22669 | F208: 6 | G208: Jubarte
B209: PETROBRAS 56 | C209: 34303.42029 | D209: 801.5865603 | E209: 39345.24745 | F209: 10 | G209: Marlim Sul
B210: PETROBRAS 43 | C210: 33973.99778 | D210: 651.5010057 | E210: 38071.81532 | F210: 13 | G210: Barracuda/Caratinga
B211: PETROBRAS 51 | C211: 32214.31022 | D211: 494.1942503 | E211: 35322.69815 | F211: 12 | G211: Marlim Sul
B212: FPSO CIDADE DE CARAGUATATUBA | C212: 29129.46242 | D212: 931.045248 | E212: 34985.56013 | F212: 2 | G212: Lapa
B213: PETROBRAS 62 | C213: 28959.15743 | D213: 2237.702449 | E213: 43033.88067 | F213: 12 | G213: Roncador
B216: Tabela 17. As 30 instalações com maior produção de gás natural (Mm³/d)
B218: Instalação | C218: Petróleo (bbl/d) | D218: Gás natural (Mm³/d) | E218: Produção (boe/d) | F218: Nº poços produtores | G218: Campos Produtores
B219: FPSO CIDADE DE ITAGUAÍ | C219: 139036.5352 | D219: 7564.532125 | E219: 186616.005 | F219: 7 | G219: Lula
B220: FPSO CIDADE DE MANGARATIBA | C220: 129939.3041 | D220: 7429.438529 | E220: 176669.0609 | F220: 8 | G220: Lula
B221: POLO ARARA | C221: 7362.726419 | D221: 6710.405348 | E221: 49569.90108 | F221: 32 | G221: Arara Azul/Araracanga/Carapanaúba/Cupiúba/Rio Urucu/Sudoeste Urucu
B222: FPSO CIDADE DE SAQUAREMA | C222: 138423.5983 | D222: 6183.024395 | E222: 177313.6469 | F222: 7 | G222: Anc_Lula/Lula/Sul De Lula
B223: PETROBRAS 75 (P-75) | C223: 163409.3414 | D223: 5981.301794 | E223: 201030.5932 | F223: 4 | G223: Búzios/Tambuatá
... 223 more rows

Sheet 4. Pandemia_Covid-19
A1: 4. PANDEMIA/COVID-19
A4: Tabela 19. Campos com produção interrompida temporariamente
A6: Campos | B6: Operador | C6: Bacia | D6: Ambiente | E6: Dada de início da interrupção | F6: Data do fim da interrupção
A7: CAIOBA | B7: Petrobras | C7: Sergipe | D7: MAR | E7: 2020-03-26 | F7: -
A8: CAMORIM | B8: Petrobras | C8: Sergipe | D8: MAR | E8: 2020-03-26 | F8: -
A9: GUARICEMA | B9: Petrobras | C9: Sergipe | D9: MAR | E9: 2020-03-26 | F9: -
A10: GAROUPA | B10: Petrobras | C10: Campos | D10: MAR | E10: 2020-03-26 | F10: -
A11: CHERNE | B11: Petrobras | C11: Campos | D11: MAR | E11: 2020-03-26 | F11: -
A12: NAMORADO | B12: Petrobras | C12: Campos | D12: MAR | E12: 2020-03-26 | F12: -
A13: BAGRE | B13: Petrobras | C13: Campos | D13: MAR | E13: 2020-03-26 | F13: -
A14: BARRACUDA | B14: Petrobras | C14: Campos | D14: MAR | E14: 2020-04-07 | F14: 2020-04-26
A15: CARATINGA | B15: Petrobras | C15: Campos | D15: MAR | E15: 2020-04-04 | F15: 2020-04-26
A16: ATUM | B16: Petrobras | C16: Ceará | D16: MAR | E16: 2020-03-26 | F16: -
A17: XARÉU | B17: Petrobras | C17: Ceará | D17: MAR | E17: 2020-03-26 | F17: -
A18: CURIMÃ | B18: Petrobras | C18: Ceará | D18: MAR | E18: 2020-03-26 | F18: -
A19: ESPADA | B19: Petrobras | C19: Ceará | D19: MAR | E19: 2020-03-26 | F19: -
A20: UBARANA | B20: Petrobras | C20: Potiguar | D20: MAR | E20: 2020-03-26 | F20: -
A21: OESTE DE UBARANA | B21: Petrobras | C21: Potiguar | D21: MAR | E21: 2020-03-26 | F21: -
A22: AGULHA | B22: Petrobras | C22: Potiguar | D22: MAR | E22: 2020-03-26 | F22: -
A23: AGUILHADA | B23: Petrobras | C23: Sergipe | D23: TERRA | E23: 2020-03-26 | F23: -
A24: ANGELIM | B24: Petrobras | C24: Sergipe | D24: TERRA | E24: 2020-03-26 | F24: -
A25: ARUARI | B25: Petrobras | C25: Sergipe | D25: TERRA | E25: 2020-03-26 | F25: -
A26: ATALAIA SUL | B26: Petrobras | C26: Sergipe | D26: TERRA | E26: 2020-03-26 | F26: -
A27: BREJO GRANDE | B27: Petrobras | C27: Sergipe | D27: TERRA | E27: 2020-03-26 | F27: -
A28: ILHA PEQUENA | B28: Petrobras | C28: Sergipe | D28: TERRA | E28: 2020-03-26 | F28: -
A29: BARRINHA | B29: Petrobras | C29: Potiguar | D29: TERRA | E29: 2020-03-26 | F29: -
A30: BARRINHA LESTE | B30: Petrobras | C30: Potiguar | D30: TERRA | E30: 2020-03-26 | F30: -
A31: BARRINHA SUDOESTE | B31: Petrobras | C31: Potiguar | D31: TERRA | E31: 2020-03-26 | F31: -
A32: POÇO VERDE | B32: Petrobras | C32: Potiguar | D32: TERRA | E32: 2020-03-26 | F32: -
A33: SERRA DO MEL | B33: Petrobras | C33: Potiguar | D33: TERRA | E33: 2020-03-26 | F33: -
A34: SERRA VERMELHA | B34: Petrobras | C34: Potiguar | D34: TERRA | E34: 2020-03-26 | F34: -
A35: VALE DO QUIRICÓ | B35: Energizzi | C35: Recôncavo | D35: TERRA | E35: 2020-03-26 | F35: -
A36: LAGOA DO PAULO SUL | B36: Recôncavo E&P | C36: Recôncavo | D36: TERRA | E36: 2020-03-26 | F36: -
A37: JURITI | B37: Recôncavo E&P | C37: Recôncavo | D37: TERRA | E37: 2020-03-26 | F37: -
A38: BREJINHO | B38: Petrobras | C38: Recôncavo | D38: TERRA | E38: 2020-04-16 | F38: -
A39: CANABRAVA | B39: Petrobras | C39: Recôncavo | D39: TERRA | E39: 2020-04-16 | F39: -
A40: MANATI | B40: Petrobras | C40: Camamu | D40: MAR | E40: 2020-02-22 | F40: 2020-05-23
A41: PEROÁ | B41: Petrobras | C41: Espírito Santo | D41: MAR | E41: 2020-04-03 | F41: 2020-05-27
A42: CANGOÁ | B42: Petrobras | C42: Espírito Santo | D42: MAR | E42: 2020-04-03 | F42: 2020-05-27
A43: MERLUZA | B43: Petrobras | C43: Santos | D43: MAR | E43: 2020-03-27 | F43: -
A44: LAGOSTA | B44: Petrobras | C44: Santos | D44: MAR | E44: 2020-03-27 | F44: -
A45: RIO SUMAÚBA | B45: Petrobras | C45: Recôncavo | D45: TERRA | E45: 2020-05-11 | F45: -
A47: TOTAL DE CAMPOS QUE INTERROMPERAM A PRODUÇÃO | C47: 39
A49: TOTAL DE CAMPOS QUE RETORNARAM A OPERAR | C49: 5
A51: TOTAL DE CAMPOS QUE PERMANECEM COM PRODUÇÃO INTERROMPIDA | C51: 34
A56: Tabela 20. Plataformas com produção temporariamente interrompida
A59: Plataformas com produção temporariamente interrompidas | B59: Nome da UEP | C59: Campo | D59: Tipo | E59: Ambiente | F59: Dada de início da interrupção | G59: Data do fim da interrupção
A60: PCB-1 | B60: PLATAFORMA DE CAIOBA 1 | C60: CAIOBA | D60: FIXA | E60: MAR | F60: 2020-03-26 | G60: -
A61: PCB-2 | B61: PLATAFORMA DE CAIOBA 2 | C61: CAIOBA | D61: FIXA | E61: MAR | F61: 2020-03-26 | G61: -
A62: PCB-3 | B62: PLATAFORMA DE CAIOBA 3 | C62: CAIOBA | D62: FIXA | E62: MAR | F62: 2020-03-26 | G62: -
A63: PCB-4 | B63: PLATAFORMA DE CAIOBA 4 | C63: CAIOBA | D63: FIXA | E63: MAR | F63: 2020-03-26 | G63: -
A64: PCM-1 | B64: PLATAFORMA DE CAMORIM 1 | C64: CAMORIM | D64: FIXA | E64: MAR | F64: 2020-03-26 | G64: -
A65: PCM-2 | B65: PLATAFORMA DE CAMORIM 2 | C65: CAMORIM | D65: FIXA | E65: MAR | F65: 2020-03-26 | G65: -
A66: PCM-3 | B66: PLATAFORMA DE CAMORIM 3 | C66: CAMORIM | D66: FIXA | E66: MAR | F66: 2020-03-26 | G66: -
A67: PCM-4 | B67: PLATAFORMA DE CAMORIM 4 | C67: CAMORIM | D67: FIXA | E67: MAR | F67: 2020-03-26 | G67: -
A68: PCM-5 | B68: PLATAFORMA DE CAMORIM 5 | C68: CAMORIM | D68: FIXA | E68: MAR | F68: 2020-03-26 | G68: -
A69: PCM-6 | B69: PLATAFORMA DE CAMORIM 6 | C69: CAMORIM | D69: FIXA | E69: MAR | F69: 2020-03-26 | G69: -
A70: PCM-7 | B70: PLATAFORMA DE CAMORIM 7 | C70: CAMORIM | D70: FIXA | E70: MAR | F70: 2020-03-26 | G70: -
A71: PCM-8 | B71: PLATAFORMA DE CAMORIM 8 | C71: CAMORIM | D71: FIXA | E71: MAR | F71: 2020-03-26 | G71: -
A72: PCM-9 | B72: PLATAFORMA DE CAMORIM 9 | C72: CAMORIM | D72: FIXA | E72: MAR | F72: 2020-03-26 | G72: -
A73: PCM-10 | B73: PLATAFORMA DE CAMORIM 10 | C73: CAMORIM | D73: FIXA | E73: MAR | F73: 2020-03-26 | G73: -
A74: PGA-1 | B74: PLATAFORMA DE GUARICEMA 1 | C74: GUARICEMA | D74: FIXA | E74: MAR | F74: 2020-03-26 | G74: -
A75: PGA-2 | B75: PLATAFORMA DE GUARICEMA 2 | C75: GUARICEMA | D75: FIXA | E75: MAR | F75: 2020-03-26 | G75: -
A76: PGA-3 | B76: PLATAFORMA DE GUARICEMA 3 | C76: GUARICEMA | D76: FIXA | E76: MAR | F76: 2020-03-26 | G76: -
A77: PGA-4 | B77: PLATAFORMA DE GUARICEMA 4 | C77: GUARICEMA | D77: FIXA | E77: MAR | F77: 2020-03-26 | G77: -
A78: PGA-5 | B78: PLATAFORMA DE GUARICEMA 5 | C78: GUARICEMA | D78: FIXA | E78: MAR | F78: 2020-03-26 | G78: -
A79: PGA-8 | B79: PLATAFORMA DE GUARICEMA 8 | C79: GUARICEMA | D79: FIXA | E79: MAR | F79: 2020-03-26 | G79: -
A80: PRB-1 | B80: PLATAFORMA DE ROBALO 1 | C80: ROBALO | D80: FIXA | E80: MAR | F80: 2020-03-26 | G80: -
A81: P-09 | B81: PETROBRAS P-09 | C81: CONGRO, CORVINA E MALHADO | D81: SEMI-SUB | E81: MAR | F81: 2020-03-26 | G81: -
A82: PGP-1 | B82: PLATAFORMA DE GAROUPA 1 | C82: GAROUPA | D82: FIXA | E82: MAR | F82: 2020-03-26 | G82: -
A83: PCH-1 | B83: PLATAFORMA DE CHERNE 1 | C83: CHERNE | D83: FIXA | E83: MAR | F83: 2020-03-26 | G83: -
A84: PCH-2 | B84: PLATAFORMA DE CHERNE 2 | C84: CHERNE | D84: FIXA | E84: MAR | F84: 2020-03-26 | G84: -
A85: PNA-1 | B85: PLATAFORMA DE NAMORADO 1 | C85: NAMORADO | D85: FIXA | E85: MAR | F85: 2020-03-26 | G85: -
A86: PNA-2 | B86: PLATAFORMA DE NAMORADO 2 | C86: NAMORADO | D86: FIXA | E86: MAR | F86: 2020-03-26 | G86: -
A87: P-43 | B87: PETROBRAS P-43 | C87: BARRACUDA | D87: FPSO | E87: MAR | F87: 2020-04-07 | G87: 2020-05-23
A88: P-48 | B88: PETROBRAS P-48 | C88: CARATINGA | D88: FPSO | E88: MAR | F88: 2020-04-04 | G88: 2020-04-26
A89: PAT-1 | B89: PLATAFORMA DE ATUM 1 | C89: ATUM | D89: FIXA | E89: MAR | F89: 2020-03-26 | G89: -
A90: PAT-2 | B90: PLATAFORMA DE ATUM 2 | C90: ATUM | D90: FIXA | E90: MAR | F90: 2020-03-26 | G90: -
A91: PAT-3 | B91: PLATAFORMA DE ATUM 3 | C91: ATUM | D91: FIXA | E91: MAR | F91: 2020-03-26 | G91: -
A92: PXA-1 | B92: PLATAFORMA DE XARÉU 1 | C92: XARÉU | D92: FIXA | E92: MAR | F92: 2020-03-26 | G92: -
A93: PXA-2 | B93: PLATAFORMA DE XARÉU 2 | C93: XARÉU | D93: FIXA | E93: MAR | F93: 2020-03-26 | G93: -
A94: PXA-3 | B94: PLATAFORMA DE XARÉU 3 | C94: XARÉU | D94: FIXA | E94: MAR | F94: 2020-03-26 | G94: -
A95: PCR-1 | B95: PLATAFORMA DE CURIMÃ 1 | C95: CURIMÃ | D95: FIXA | E95: MAR | F95: 2020-03-26 | G95: -
A96: PCR-2 | B96: PLATAFORMA DE CURIMÃ 2 | C96: CURIMÃ | D96: FIXA | E96: MAR | F96: 2020-03-26 | G96: -
A97: PEP-1 | B97: PLATAFORMA DE ESPADA 1 | C97: ESPADA | D97: FIXA | E97: MAR | F97: 2020-03-26 | G97: -
A98: PART-2 | B98: PLATAFORMA DE ARATUM 2 | C98: ARATUM | D98: FIXA | E98: MAR | F98: 2020-03-26 | G98: -
A99: PCIO-1 | B99: PLATAFORMA DE CIOBA 1 | C99: CIOBA | D99: FIXA | E99: MAR | F99: 2020-03-26 | G99: -
A100: PUB-1 | B100: PLATAFORMA DE UBARANA 1 | C100: UBARANA | D100: FIXA | E100: MAR | F100: 2020-03-26 | G100: -
A101: PUB-2 | B101: PLATAFORMA DE UBARANA 2 | C101: UBARANA | D101: FIXA CONCRETO | E101: MAR | F101: 2020-03-26 | G101: -
A102: PUB-3 | B102: PLATAFORMA DE UBARANA 3 | C102: UBARANA | D102: FIXA CONCRETO | E102: MAR | F102: 2020-03-26 | G102: -
A103: PUB-4 | B103: PLATAFORMA DE UBARANA 4 | C103: UBARANA | D103: FIXA | E103: MAR | F103: 2020-03-26 | G103: -
A104: PUB-5 | B104: PLATAFORMA DE UBARANA 5 | C104: UBARANA | D104: FIXA | E104: MAR | F104: 2020-03-26 | G104: -
A105: PUB-6 | B105: PLATAFORMA DE UBARANA 6 | C105: UBARANA | D105: FIXA | E105: MAR | F105: 2020-03-26 | G105: -
A106: PUB-7 | B106: PLATAFORMA DE UBARANA 7 | C106: UBARANA | D106: FIXA | E106: MAR | F106: 2020-03-26 | G106: -
A107: PUB-8 | B107: PLATAFORMA DE UBARANA 8 | C107: UBARANA | D107: FIXA | E107: MAR | F107: 2020-03-26 | G107: -
A108: PUB-9 | B108: PLATAFORMA DE UBARANA 9 | C108: UBARANA | D108: FIXA | E108: MAR | F108: 2020-03-26 | G108: -
A109: PUB-10 | B109: PLATAFORMA DE UBARANA 10 | C109: UBARANA | D109: FIXA | E109: MAR | F109: 2020-03-26 | G109: -
A110: PUB-11 | B110: PLATAFORMA DE UBARANA 11 | C110: UBARANA | D110: FIXA | E110: MAR | F110: 2020-03-26 | G110: -
A111: PUB-12 | B111: PLATAFORMA DE UBARANA 12 | C111: UBARANA | D111: FIXA | E111: MAR | F111: 2020-03-26 | G111: -
A112: PUB-13 | B112: PLATAFORMA DE UBARANA 13 | C112: UBARANA | D112: FIXA | E112: MAR | F112: 2020-03-26 | G112: -
A113: PUB-15 | B113: PLATAFORMA DE UBARANA 15 | C113: UBARANA | D113: FIXA | E113: MAR | F113: 2020-03-26 | G113: -
A114: POUB-1 | B114: PLATAFORMA DE OESTE DE UBARANA 1 | C114: OESTE DE UBARANA | D114: FIXA | E114: MAR | F114: 2020-03-26 | G114: -
A115: POUB-2 | B115: PLATAFORMA DE OESTE DE UBARANA 2 | C115: OESTE DE UBARANA | D115: FIXA | E115: MAR | F115: 2020-03-26 | G115: -
A116: PBIQ-1 | B116: PLATAFORMA DE BIQUARA 1 | C116: BIQUARA | D116: FIXA | E116: MAR | F116: 2020-03-26 | G116: -
A117: PAG-1 | B117: PLATAFORMA DE AGULHA 1 | C117: AGULHA | D117: FIXA | E117: MAR | F117: 2020-03-26 | G117: -
A118: PAG-2 | B118: PLATAFORMA DE AGULHA 2 | C118: AGULHA | D118: FIXA CONCRETO | E118: MAR | F118: 2020-03-26 | G118: -
A119: PAG-3 | B119: PLATAFORMA DE AGULHA 3 | C119: AGULHA | D119: FIXA | E119: MAR | F119: 2020-03-26 | G119: -
A120: PMNT | B120: PLATAFORMA DE MANATI | C120: MANATI | D120: FIXA | E120: MAR | F120: 2020-02-22 | G120: 2020-05-23
A121: PPER | B121: PLATAFORMA DE PEROÁ | C121: PEROÁ E CANGOÁ | D121: FIXA | E121: MAR | F121: 2020-04-03 | G121: 2020-05-27
A122: PMLZ | B122: PLATAFORMA DE MERLUZA | C122: MERLUZA E LAGOSTA | D122: FIXA | E122: MAR | F122: 2020-03-27 | G122: -
A123: FPSO CMB | B123: FPSO CIDADE DE MANGARATIBA | C123: LULA | D123: FPSO | E123: MAR | F123: 2020-04-30 | G123: 2020-05-09
A124: FPSO CAR | B124: FPSO CIDADE DE ANGRA DOS REIS | C124: LULA | D124: FPSO | E124: MAR | F124: 2020-05-05 | G124: 2020-05-16
A125: FPSO CST | B125: FPSO CIDADE DE SANTOS | C125: UGUGUÁ E TAMBAÚ | D125: FPSO | E125: MAR | F125: 2020-04-08 | G125: 2020-04-18
A126: FPSO CAPX | B126: FPSP CAPIXABA | C126: JUBARTE E PARQUE DAS BALEIAS | D126: FPSO | E126: MAR | F126: 2020-04-09 | G126: -
A129: Total de UEPs que interromperam a produção | C129: 67 | D129: Pico de instalações que chegaram a interromper temporariamente suas operações
A131: UEPs que retornaram à operação | C131: 7
A133: Total de UEPs que permanecem com produção interrompida | C133: 60
